[Event "15th Arad Open 2022"]
[Site "Arad"]
[Date "2022.08.13"]
[Round "8.18"]
[White "Tablan, Andrei-Damian"]
[Black "Oltean, Cristian-Daniel"]
[Result "1/2-1/2"]
[ECO "E70"]
[WhiteElo "1784"]
[BlackElo "2158"]
[Annotator "TA"]
[PlyCount "120"]
[EventDate "2022.08.08"]
[EventType "swiss"]
[EventCountry "ROU"]
[SourceTitle "playchess.com"]
[Source "ChessBase"]
[SourceQuality "1"]
[TimeControl "5400+30"]

{[%evp 10,120,78,41,64,62,107,110,106,105,106,-118,-103,-121,-42,-39,-30,-47,-28,-34,-28,-20,0,-25,-41,-79,-85,-152,-138,-148,-139,-149,-149,-150,-149,-119,-112,-193,-83,-93,-83,-87,-69,-49,0,0,0,0,0,0,0,0,0,-20,-20,-29,-18,-37,-37,-47,-47,-77,-14,-52,-27,-21,-25,-34,-3,-18,-8,-18,-13,-26,-13,-24,0,-31,-31,-18,-18,-29,0,-22,-18,-29,0,-34,-6,-6,0,-3,-4,-7,-7,-8,-8,-8,-8,-9,-9,-11,0,-11,-7,-11,0,0,0,0,0,0,0]} 1. d4 {[%emt 0:00:09]} g6 {[%emt 0:00:54]} 2. c4 {[%emt 0:03:31]} Bg7 {[%emt 0:00:17]} 3. Nc3 {[%emt 0:01:04]} c5 {[%emt 0:03:54]} 4. d5 {[%emt 0:02:26]} d6 {[%emt 0:00:20]} 5. e4 {[%emt 0:00:49]} Nf6 {[%emt 0:00:13]} 6. Bg5 {[%emt 0:06:33]} Nbd7 {[%emt 0:08:17] E70: King's Indian: Miscellaneous lines with 4 e4, including 5 Nge2 and 5 Bd3 0-0 6 Nge2.} 7. h3 {[%emt 0:05:13]} b5 {[%emt 0:07:51]} 8. cxb5 {[%emt 0:02:09]} a6 {[%emt 0:01:43] White is better.} 9. Nf3 {[%emt 0:01:08]} O-O {[%emt 0:01:02] [#]} 10. Be2 $146 {[%emt 0:00:44] White is more active.} (10. a4 $16) ({Predecessor:} 10. bxa6 Qa5 11. Nd2 Bxa6 12. Bxa6 Qxa6 13. Qe2 Rfb8 14. Rb1 Ne5 15. Qxa6 Rxa6 16. Ke2 {1-0 (34) Von Auer,U (2055)-Ruell,M (1804) Bad Homburg 2018}) 10... axb5 $1 $17 {[%emt 0:01:40] Strongly threatening ...b4.} 11. e5 {[%emt 0:34:05] [#]} Ne8 {[%emt 0:21:32]} (11... b4 $1 $17 12. exf6 exf6) 12. Bxb5 $15 {[%emt 0:04:37]} Nxe5 {[%emt 0:00:47]} 13. O-O {[%emt 0:01:15]} Nxf3+ {[%emt 0:03:14]} 14. Qxf3 {[%emt 0:00:06]} h6 {[%emt 0:02:24]} 15. Bd2 {[%emt 0:04:33]} Bb7 {[%emt 0:01:40]} 16. Rfe1 {[%emt 0:04:18]} e6 {[%emt 0:06:28]} 17. Qd3 {[%emt 0:00:25]} exd5 {[%emt 0:10:07] Threatens to win with ...Nc7.} 18. Nxd5 {[%emt 0:00:54]} (18. Bxe8 $142 Rxe8 19. Nxd5) 18... Bxd5 $17 {[%emt 0:01:04]} 19. Qxd5 {[%emt 0:02:59]} Nc7 {[%emt 0:00:35]} 20. Qc4 {[%emt 0:04:09]} Nxb5 {[%emt 0:01:30]} 21. Qxb5 {[%emt 0:00:05]} Rb8 {[%emt 0:00:16]} 22. Qd3 {[%emt 0:02:04]} Rxb2 {[%emt 0:03:23][%cal Oc5c4] ...c4! is the strong threat.} 23. Bc3 {[%emt 0:01:40] [#]} (23. Be3 $17 {was worth a try.}) 23... Bxc3 {[%emt 0:01:07]} (23... c4 $1 $19 {[%cal Rc4d3] is more deadly.} 24. Qg3 (24. Qxc4 $2 Rc2 $19) 24... Bxc3 25. Qxc3 Qb6) 24. Qxc3 {[%emt 0:00:05]} Qb6 {[%emt 0:00:49][%cal Oc5c4]} 25. a4 {[%emt 0:00:36]} Qb4 {[%emt 0:11:18]} 26. Qf6 {[%emt 0:01:24]} Qd4 {[%emt 0:03:07]} (26... c4 $15) 27. Qxd4 $11 {[%emt 0:00:24]} cxd4 {[%emt 0:00:02][%mdl 4096] Endgame KRR-KRR} 28. Red1 {[%emt 0:00:07]} Rb4 {[%emt 0:00:15]} 29. a5 {[%emt 0:00:22]} Ra8 {[%emt 0:00:08]} 30. a6 {[%emt 0:01:10]} Ra7 {[%emt 0:00:21]} 31. Kf1 {[%emt 0:01:51]} Rb6 {[%emt 0:00:04]} 32. Rxd4 {[%emt 0:00:24]} Raxa6 {[%emt 0:00:15]} 33. Rc1 {[%emt 0:00:25]} Rb2 {[%emt 0:02:00]} 34. Kg1 {[%emt 0:00:24]} Kg7 {[%emt 0:02:08]} 35. Rcd1 {[%emt 0:01:06]} Rbb6 {[%emt 0:00:15]} (35... Raa2 $17 36. Rf4 Rd2 37. Rxd2 Rxd2) 36. Rc1 {[%emt 0:00:36]} Ra7 {[%emt 0:00:46]} 37. Rcd1 {[%emt 0:00:54]} Rd7 {[%emt 0:00:18]} 38. Kh2 {[%emt 0:00:26]} f6 {[%emt 0:01:35]} 39. R4d3 {[%emt 0:01:10]} Kf7 {[%emt 0:00:11]} 40. Kg1 {[%emt 0:00:00]} Rd8 {[%emt 0:00:00]} 41. Kh2 {[%emt 0:00:00]} Ke6 {[%emt 0:00:00]} 42. Re3+ {[%emt 0:00:00]} Kf7 {[%emt 0:00:00]} 43. Red3 $1 {[%emt 0:00:00]} h5 {[%emt 0:00:00]} 44. Kg1 {[%emt 0:00:00]} Rc6 {[%emt 0:00:00]} 45. Kh2 {[%emt 0:00:00]} Rb6 {[%emt 0:00:00]} 46. Kg1 {[%emt 0:00:00]} Ke7 {[%emt 0:00:00]} 47. Re3+ {[%emt 0:00:00]} Kf7 {[%emt 0:00:00]} 48. Red3 $1 {[%emt 0:00:00]} g5 {[%emt 0:00:00]} 49. g3 {[%emt 0:00:00] The position is equal.} Kg6 {[%emt 0:00:00]} 50. Kh2 {[%emt 0:00:00]} Rc6 {[%emt 0:02:00]} 51. Kg2 {[%emt 0:00:00]} Kf5 {[%emt 0:00:29]} 52. Rf3+ {[%emt 0:00:00]} Ke6 {[%emt 0:00:45]} 53. Re3+ {[%emt 0:00:00]} Kf7 {[%emt 0:01:12]} 54. Red3 {[%emt 0:00:00]} Rd7 {[%emt 0:00:13]} 55. R3d2 {[%emt 0:00:00]} Ke8 {[%emt 0:00:12]} 56. Re2+ {[%emt 0:00:00]} Re7 {[%emt 0:00:24]} 57. Ra2 {[%emt 0:00:00]} Kd7 {[%emt 0:01:12]} 58. Ra7+ {[%emt 0:00:00]} Rc7 {[%emt 0:00:19]} 59. Ra6 {[%emt 0:00:00]} Re6 {[%emt 0:00:05]} 60. Ra8 {[%emt 0:00:00]} Rc8 {[%emt 0:01:10] And White is the lucky defender.  Weighted Error Value: White=0.18 (very precise) /Black=0.14 (very precise)} 1/2-1/2

[Event "15th Arad Open 2022"]
[Site "Arad"]
[Date "2022.08.13"]
[Round "8.19"]
[White "Donici-Maier, David"]
[Black "Zubac, Marius"]
[Result "1-0"]
[ECO "B06"]
[WhiteElo "1786"]
[BlackElo "2025"]
[Annotator "NA RC"]
[PlyCount "97"]
[EventDate "2022.08.08"]
[EventType "swiss"]
[EventCountry "ROU"]
[SourceTitle "playchess.com"]
[Source "ChessBase"]
[SourceQuality "1"]
[TimeControl "5400+30"]

1. e4 {[%emt 0:00:04]} g6 {[%emt 0:00:36]} 2. d4 {[%emt 0:00:09]} Bg7 {[%emt 0:00:24]} 3. Nc3 {[%emt 0:00:09]} d6 {[%emt 0:00:07]} 4. f3 {[%emt 0:01:22]} a6 {[%emt 0:01:59]} 5. Be3 {[%emt 0:02:50]} b5 {[%emt 0:00:08]} 6. Qd2 {[%emt 0:03:45]} Bb7 {[%emt 0:01:29]} 7. Nh3 {[%emt 0:04:25]} Nd7 {[%emt 0:00:09]} 8. Nf4 {[%emt 0:08:16]} Rc8 {[%emt 0:04:09]} 9. a4 {[%emt 0:05:57]} b4 {[%emt 0:04:08]} 10. Na2 {[%emt 0:00:23]} a5 {[%emt 0:00:06]} 11. c3 {[%emt 0:00:23]} c5 {[%emt 0:04:58]} 12. Nh3 {[%emt 0:05:17]} b3 {[%emt 0:08:23]} 13. Nc1 {[%emt 0:01:15]} c4 {[%emt 0:00:07]} 14. Be2 {[%emt 0:00:45]} h5 {[%emt 0:09:08]} 15. O-O {[%emt 0:02:24]} Ngf6 {[%emt 0:03:25]} 16. Bd1 {[%emt 0:04:27]} h4 {[%emt 0:03:39]} 17. Ne2 {[%emt 0:01:57]} d5 {[%emt 0:00:11]} 18. e5 {[%emt 0:02:17]} Nh5 {[%emt 0:00:06]} 19. Nef4 {[%emt 0:07:20]} Nxf4 {[%emt 0:05:02]} 20. Nxf4 {[%emt 0:04:33]} Nf8 {[%emt 0:00:36]} 21. Nh3 {[%emt 0:00:44]} Rc6 {[%emt 0:03:31]} 22. f4 {[%emt 0:01:01]} Bc8 {[%emt 0:00:01]} 23. Bf3 {[%emt 0:01:36]} Bf5 {[%emt 0:02:48]} 24. Qd1 {[%emt 0:00:43]} Qd7 {[%emt 0:01:08]} 25. Nf2 {[%emt 0:00:54]} f6 {[%emt 0:05:10]} 26. Re1 {[%emt 0:06:05]} Bc2 {[%emt 0:07:06]} 27. Qd2 {[%emt 0:00:13]} f5 {[%emt 0:00:35]} 28. Bd1 {[%emt 0:01:17]} Be4 {[%emt 0:00:20]} 29. Nxe4 {[%emt 0:00:44]} fxe4 {[%emt 0:00:45]} 30. h3 {[%emt 0:00:48]} Ra6 {[%emt 0:03:17]} 31. Bg4 {[%emt 0:01:09]} e6 {[%emt 0:00:02]} 32. Bd1 {[%emt 0:00:38]} Qf7 {[%emt 0:00:51]} 33. Qe2 {[%emt 0:00:54]} Nd7 {[%emt 0:00:10]} 34. Bxb3 {[%emt 0:03:00]} Rb6 {[%emt 0:01:34]} 35. Ba2 {[%emt 0:04:04]} Nf8 {[%emt 0:03:12]} 36. Rab1 {[%emt 0:01:05]} Qb7 {[%emt 0:01:00]} 37. Qc2 {[%emt 0:00:11]} Bh6 {[%emt 0:00:05]} 38. b3 {[%emt 0:00:32]} cxb3 {[%emt 0:00:06]} 39. Rxb3 {[%emt 0:00:15]} Rg8 {[%emt 0:00:07]} 40. Reb1 {[%emt 0:00:00]} Rxb3 {[%emt 0:00:00]} 41. Rxb3 {[%emt 0:00:00]} Qc7 {[%emt 0:00:00]} 42. Qb2 {[%emt 0:00:00]} Nd7 {[%emt 0:00:00]} 43. Rb7 {[%emt 0:00:00]} Qc8 {[%emt 0:00:00]} 44. Qb5 {[%emt 0:00:00]} Rg7 {[%emt 0:00:00]} 45. c4 {[%emt 0:00:00]} g5 {[%emt 0:00:00]} 46. f5 {[%emt 0:00:00]} exf5 {[%emt 0:00:00]} 47. e6 {[%emt 0:00:00]} f4 {[%emt 0:00:00]} 48. exd7+ {[%emt 0:00:00]} Rxd7 {[%emt 0:00:00]} 49. Rb8 {[%emt 0:00:00]} 1-0

[Event "15th Arad Open 2022"]
[Site "Arad"]
[Date "2022.08.13"]
[Round "8.20"]
[White "Capragiu, Matei-Stefan"]
[Black "Korcsek, Alexandru-David"]
[Result "1/2-1/2"]
[ECO "D34"]
[WhiteElo "1925"]
[BlackElo "1826"]
[Annotator "TA"]
[PlyCount "37"]
[EventDate "2022.08.08"]
[EventType "swiss"]
[EventCountry "ROU"]
[SourceTitle "playchess.com"]
[Source "ChessBase"]
[SourceQuality "1"]
[TimeControl "5400+30"]

{[%evp 23,37,43,48,0,0,0,0,0,0,0,0,-41,-26,-129,-127,-114]} 1. d4 {[%emt 0:00:01]} d5 {[%emt 0:00:10]} 2. c4 {[%emt 0:00:05]} e6 {[%emt 0:00:17]} 3. Nf3 {[%emt 0:00:06]} c5 {[%emt 0:00:06]} 4. cxd5 {[%emt 0:00:21]} exd5 {[%emt 0:00:11]} 5. g3 {[%emt 0:00:06]} Nc6 {[%emt 0:03:07]} 6. Bg2 {[%emt 0:00:24]} Nf6 {[%emt 0:01:15]} 7. O-O {[%emt 0:00:15]} Be6 {[%emt 0:02:21]} 8. Nc3 {[%emt 0:00:26]} Be7 {[%emt 0:03:59]} 9. dxc5 {[%emt 0:00:51]} Bxc5 {[%emt 0:00:38]} 10. Bg5 {[%emt 0:03:02]} Be7 {[%emt 0:09:31][%cal Bc5e7,Be7f6,Bf6b2,Bb2a3][%mdl 32]} 11. Nd4 {[%emt 0:08:38]} O-O {[%emt 0:01:47]} 12. Rc1 {[%emt 0:09:46]} h6 {[%emt 0:09:47]} 13. Nxc6 {[%emt 0:02:44] D34: Tarrasch Defence: 6 g3 Nf6 7 Bg2 Be7.} (13. Be3 $14) 13... bxc6 $11 {[%emt 0:00:15]} 14. Bxf6 {[%emt 0:01:28]} Bxf6 {[%emt 0:01:17]} 15. Na4 {[%emt 0:00:47] The position is equal.} Rc8 {[%emt 0:13:23] [#]} 16. Nc5 $146 {[%emt 0:03:59]} ({Predecessor:} 16. b3 Re8 17. Qd3 Bg4 18. Bf3 Bh3 19. Bg2 Bg4 20. e3 g6 21. h3 Bf5 22. Qa6 {1-0 (72) Shanava,K (2502)-Gagunashvili,M (2580) Tbilisi 2020}) 16... Bxb2 {[%emt 0:02:20]} 17. Rb1 {[%emt 0:02:27]} Ba3 {[%emt 0:04:08] This bishop pair is nice.} 18. Nb7 {[%emt 0:04:04]} (18. Nxe6 $11 fxe6 19. Bh3) 18... Qe7 $17 {[%emt 0:01:05]} 19. Qa4 {[%emt 0:02:28] White did not feel at home in the position after the opening.  Weighted Error Value: White=0.39/Black=0.04 (flawless)} 1/2-1/2

[Event "15th Arad Open 2022"]
[Site "Arad"]
[Date "2022.08.14"]
[Round "9.2"]
[White "Secheres, Adrian-Simion"]
[Black "Manolache, Marius"]
[Result "1/2-1/2"]
[ECO "A54"]
[WhiteElo "2360"]
[BlackElo "2469"]
[Annotator "TA"]
[PlyCount "25"]
[EventDate "2022.08.08"]
[EventType "swiss"]
[EventCountry "ROU"]
[SourceTitle "playchess.com"]
[Source "ChessBase"]
[SourceQuality "1"]
[TimeControl "5400+30"]

{[%evp 9,25,51,66,61,55,28,28,20,39,9,25,19,29,28,27,41,40,11]} 1. d4 {[%emt 0:00:06]} Nf6 {[%emt 0:00:10]} 2. c4 {[%emt 0:00:16]} d6 {[%emt 0:00:06]} 3. Nc3 {[%emt 0:00:23]} e5 {[%emt 0:00:10]} 4. Nf3 {[%emt 0:00:27]} Nbd7 {[%emt 0:00:20]} 5. Qc2 {[%emt 0:01:17]} exd4 {[%emt 0:03:37]} 6. Nxd4 {[%emt 0:00:06] A54: Old Indian Defence with Nf3, but without e4.} g6 {[%emt 0:00:14] [#]} 7. b3 $146 {[%emt 0:03:21]} ({Predecessor:} 7. g3 Bg7 8. Bg2 O-O 9. O-O Nb6 10. b3 c5 11. Ndb5 a6 12. Na3 {½-½ (12) Secheres,A (2388)-Stanciu,A (2337) Satu Mare 2018}) 7... Bg7 {[%emt 0:00:22]} 8. Bb2 {[%emt 0:00:34] White has an edge.} O-O {[%emt 0:01:30]} 9. e3 {[%emt 0:03:40]} Ne5 {[%emt 0:11:57]} 10. Be2 {[%emt 0:00:45]} b6 {[%emt 0:14:06]} 11. O-O {[%emt 0:03:10]} Bb7 {[%emt 0:00:06]} 12. Rad1 {[%emt 0:02:43]} Re8 {[%emt 0:04:09]} 13. Rd2 {[%emt 0:06:28] Weighted Error Value: White=0.12 (very precise) /Black=0.07 (flawless)} 1/2-1/2

[Event "15th Arad Open 2022"]
[Site "Arad"]
[Date "2022.08.14"]
[Round "9.3"]
[White "Stanciu, Alexandru-Ovidiu"]
[Black "Sedlak, Nikola"]
[Result "1/2-1/2"]
[ECO "D04"]
[WhiteElo "2326"]
[BlackElo "2480"]
[Annotator "TA"]
[PlyCount "42"]
[EventDate "2022.08.08"]
[EventType "swiss"]
[EventCountry "ROU"]
[SourceTitle "playchess.com"]
[Source "ChessBase"]
[SourceQuality "1"]
[TimeControl "5400+30"]

{[%evp 9,42,5,5,2,6,6,21,21,10,12,19,12,9,21,20,21,16,0,21,3,0,0,0,0,14,6,14,18,11,-8,-8,-21,-2,-13,0]} 1. d4 {[%emt 0:00:05]} d5 {[%emt 0:00:08]} 2. Nf3 {[%emt 0:00:08]} Nf6 {[%emt 0:00:16]} 3. e3 {[%emt 0:00:19]} Bf5 {[%emt 0:00:48]} 4. Bd3 {[%emt 0:01:05]} e6 {[%emt 0:00:18]} 5. Bxf5 {[%emt 0:01:26]} exf5 {[%emt 0:00:08] The position is equal.} 6. Qd3 {[%emt 0:00:04] D04: Colle System.} Qc8 {[%emt 0:00:14]} 7. O-O {[%emt 0:01:00]} Bd6 {[%emt 0:00:25]} 8. b3 {[%emt 0:00:16]} O-O {[%emt 0:00:13]} 9. c4 {[%emt 0:00:37]} c6 {[%emt 0:00:09]} 10. Ba3 {[%emt 0:00:50]} Bxa3 {[%emt 0:00:26]} 11. Nxa3 {[%emt 0:00:07][%cal Bb1a3,Ba3c4,Bc4a5][%mdl 32]} Na6 {[%emt 0:01:25][%cal Bb8a6,Ba6c7,Bc7e6][%mdl 32] [#]} 12. Rac1 $146 {[%emt 0:02:31]} ({Predecessor:} 12. Rfc1 Ne4 13. Nb1 Nc7 14. Nc3 Qe6 15. cxd5 Nxd5 16. Nxd5 Qxd5 17. Ne5 {½-½ (51) Meijers,V (2463)-Sebenik,M (2526) Lienz 2011}) 12... Qe6 {[%emt 0:00:31]} 13. cxd5 {[%emt 0:08:19]} Qxd5 {[%emt 0:01:11]} 14. Rfd1 {[%emt 0:08:06]} Rad8 {[%emt 0:01:00]} 15. Qb1 {[%emt 0:05:04]} g6 {[%emt 0:02:59]} 16. Nc4 {[%emt 0:17:05]} Nc7 {[%emt 0:00:45]} 17. b4 {[%emt 0:03:38]} Ne6 {[%emt 0:00:21]} 18. Na5 {[%emt 0:01:36]} Rd7 {[%emt 0:00:22]} 19. Ne5 {[%emt 0:02:43]} Re7 {[%emt 0:00:08]} 20. f3 {[%emt 0:05:15]} Qb5 {[%emt 0:00:06]} 21. Nac4 {[%emt 0:13:43]} Rd8 {[%emt 0:02:14] A rather calm draw.  Weighted Error Value: White=0.04 (flawless) /Black=0.03 (flawless)} 1/2-1/2

[Event "15th Arad Open 2022"]
[Site "Arad"]
[Date "2022.08.14"]
[Round "9.4"]
[White "Coicev, Matei-Andrei"]
[Black "Ardeleanu, Alin"]
[Result "1/2-1/2"]
[ECO "B90"]
[WhiteElo "2087"]
[BlackElo "2290"]
[Annotator "TA"]
[PlyCount "47"]
[EventDate "2022.08.08"]
[EventType "swiss"]
[EventCountry "ROU"]
[SourceTitle "playchess.com"]
[Source "ChessBase"]
[SourceQuality "1"]
[TimeControl "5400+30"]

{[%evp 21,34,16,20,36,80,27,43,16,37,20,41,0,0,0,0]} 1. e4 {[%emt 0:00:29]} c5 {[%emt 0:00:57]} 2. Nf3 {[%emt 0:00:48]} d6 {[%emt 0:00:25]} 3. d4 {[%emt 0:00:38]} cxd4 {[%emt 0:00:08]} 4. Nxd4 {[%emt 0:01:00]} Nf6 {[%emt 0:00:08]} 5. Nc3 {[%emt 0:00:52]} a6 {[%emt 0:00:04]} 6. f3 {[%emt 0:00:42]} e5 {[%emt 0:00:29]} 7. Nb3 {[%emt 0:00:53]} Be6 {[%emt 0:00:25]} 8. Be3 {[%emt 0:00:48]} Be7 {[%emt 0:00:31]} 9. Qd2 {[%emt 0:01:07]} O-O {[%emt 0:00:43]} 10. O-O-O {[%emt 0:00:50]} Nbd7 {[%emt 0:00:08]} 11. g4 {[%emt 0:01:00]} Qc7 {[%emt 0:00:33]} 12. Kb1 {[%emt 0:02:06] B90: Sicilian Najdorf: Unusual White 6th moves, 6 Be3 Ng4 and 6 Be3 e5.} Nb6 {[%emt 0:24:45]} 13. g5 {[%emt 0:09:29]} (13. h4 $16) 13... Nh5 $1 $11 {[%emt 0:02:11]} 14. Qf2 {[%emt 0:05:36]} Nc4 {[%emt 0:04:11]} 15. Bxc4 {[%emt 0:00:31]} Qxc4 {[%emt 0:01:04]} 16. Nd5 {[%emt 0:05:29]} Bxd5 {[%emt 0:09:33]} 17. Rxd5 {[%emt 0:00:48]} f5 {[%emt 0:01:10] [#]  Weighted Error Value: White=0.24 (precise) /Black=0.12 (very precise)} {Predecessor:} 18. Nd2 $146 Qc6 19. Qe2 fxe4 20. fxe4 Nf4 21. Bxf4 Rxf4 22. Qd3 Raf8 23. h4 b5 24. a3 {1-0 (72) Percze,J (2553)-Vesely,P (2558) ICCF email 2006} 1/2-1/2

[Event "15th Arad Open 2022"]
[Site "Arad"]
[Date "2022.08.14"]
[Round "9.5"]
[White "Veneteanu, Mihai"]
[Black "Padurean, Daniel-Cristian"]
[Result "1/2-1/2"]
[ECO "C02"]
[WhiteElo "2025"]
[BlackElo "2126"]
[Annotator "RC"]
[PlyCount "116"]
[EventDate "2022.08.08"]
[EventType "swiss"]
[EventCountry "ROU"]
[SourceTitle "playchess.com"]
[Source "ChessBase"]
[SourceQuality "1"]
[TimeControl "5400+30"]

1. e4 {[%emt 0:00:03]} Nc6 {[%emt 0:00:09]} 2. d4 {[%emt 0:00:04]} e6 {[%emt 0:00:04]} 3. Nf3 {[%emt 0:00:23]} d5 {[%emt 0:00:05]} 4. e5 {[%emt 0:00:03]} f6 {[%emt 0:00:06]} 5. Bb5 {[%emt 0:00:03]} Bd7 {[%emt 0:00:58]} 6. Nc3 {[%emt 0:00:07]} Nb4 {[%emt 0:09:53]} 7. Bxd7+ {[%emt 0:14:42]} Qxd7 {[%emt 0:00:24]} 8. O-O {[%emt 0:00:22]} Nc6 {[%emt 0:06:28]} 9. Bf4 {[%emt 0:04:46]} g5 {[%emt 0:02:23]} 10. Bg3 {[%emt 0:00:18]} g4 {[%emt 0:00:16]} 11. Nh4 {[%emt 0:00:30]} f5 {[%emt 0:00:06]} 12. f3 {[%emt 0:03:01]} gxf3 {[%emt 0:01:20]} 13. Nxf3 {[%emt 0:03:27]} O-O-O {[%emt 0:00:14]} 14. Ne2 {[%emt 0:00:50]} Nh6 {[%emt 0:07:49]} 15. Qd2 {[%emt 0:13:03]} Nf7 {[%emt 0:06:15]} 16. a4 {[%emt 0:06:24]} Be7 {[%emt 0:08:37]} 17. Rfb1 {[%emt 0:16:41]} h6 {[%emt 0:03:58]} 18. b4 {[%emt 0:04:17]} Ng5 {[%emt 0:01:06]} 19. b5 {[%emt 0:00:06]} Nb8 {[%emt 0:00:08]} 20. Qa5 a6 {[%emt 0:10:40]} 21. bxa6 {[%emt 0:01:11]} Nxa6 {[%emt 0:00:04]} 22. Rb5 {[%emt 0:04:21]} c6 {[%emt 0:07:50]} 23. Rb6 {[%emt 0:00:02]} Rdg8 {[%emt 0:02:46]} 24. Rab1 {[%emt 0:00:08]} Bd8 {[%emt 0:15:44]} 25. Qxa6 {[%emt 0:00:02]} Bxb6 {[%emt 0:00:07]} 26. Qxb6 {[%emt 0:00:05]} Ne4 {[%emt 0:01:08]} 27. Qa7 {[%emt 0:09:04]} Qc7 {[%emt 0:00:18]} 28. Nf4 {[%emt 0:06:25]} Re8 {[%emt 0:00:23]} 29. Nh5 {[%emt 0:06:46]} b6 {[%emt 0:02:55]} 30. Qa6+ {[%emt 0:03:37]} Qb7 {[%emt 0:00:13]} 31. Qd3 {[%emt 0:00:40]} Qa7 {[%emt 0:02:46]} 32. Nf6 {[%emt 0:01:35]} Re7 {[%emt 0:00:17]} 33. Nd2 {[%emt 0:00:59]} Qxa4 {[%emt 0:01:00]} 34. Rxb6 {[%emt 0:01:12]} Rb7 {[%emt 0:02:54]} 35. Rxb7 {[%emt 0:01:18]} Kxb7 {[%emt 0:00:11]} 36. Nfxe4 {[%emt 0:01:07]} fxe4 {[%emt 0:00:08]} 37. Qc3 {[%emt 0:00:10]} Qb5 {[%emt 0:01:58]} 38. Kf2 {[%emt 0:01:04]} Rf8+ {[%emt 0:00:11]} 39. Ke3 {[%emt 0:00:06]} Ra8 {[%emt 0:02:49]} 40. Qb3 {[%emt 0:00:00]} Kb6 {[%emt 0:00:00]} 41. Bf4 {[%emt 0:00:00]} h5 {[%emt 0:00:00]} 42. h3 {[%emt 0:00:00]} Ra1 {[%emt 0:00:00]} 43. Kf2 {[%emt 0:00:00]} Qxb3 {[%emt 0:00:00]} 44. cxb3 {[%emt 0:01:00]} Kb5 {[%emt 0:00:00]} 45. Be3 {[%emt 0:00:43]} Kb4 {[%emt 0:00:00]} 46. g4 {[%emt 0:00:36]} hxg4 {[%emt 0:00:00]} 47. hxg4 {[%emt 0:00:04]} Kc3 {[%emt 0:00:00]} 48. g5 {[%emt 0:00:17]} Kd3 {[%emt 0:00:29]} 49. Nf1 {[%emt 0:00:24]} Ra2+ {[%emt 0:00:42]} 50. Kg3 {[%emt 0:00:57]} Ke2 {[%emt 0:01:34]} 51. Kg2 {[%emt 0:00:36]} Ke1+ {[%emt 0:01:22]} 52. Kg1 {[%emt 0:00:58]} Ke2 {[%emt 0:00:04]} 53. Kg2 {[%emt 0:00:37]} Ke1+ {[%emt 0:00:06]} 54. Kg1 {[%emt 0:00:02]} Ke2 {[%emt 0:00:03]} 55. g6 {[%emt 0:02:44]} Kf3 56. Bd2 {[%emt 0:00:30]} Ra8 {[%emt 0:09:29]} 57. Be3 {[%emt 0:00:30]} Ke2 {[%emt 0:00:30]} 58. Kg2 Ra1 {[%emt 0:00:30]} 1/2-1/2

[Event "15th Arad Open 2022"]
[Site "Arad"]
[Date "2022.08.14"]
[Round "9.6"]
[White "Srbis, Jurica"]
[Black "Tampea, Radu"]
[Result "1-0"]
[ECO "B31"]
[WhiteElo "2472"]
[BlackElo "2093"]
[Annotator "TA"]
[PlyCount "55"]
[EventDate "2022.08.08"]
[EventType "swiss"]
[EventCountry "ROU"]
[SourceTitle "playchess.com"]
[Source "ChessBase"]
[SourceQuality "1"]
[TimeControl "5400+30"]

{[%evp 16,55,17,12,34,21,33,16,9,10,18,18,25,14,12,13,18,25,10,0,21,0,0,0,209,201,308,306,297,304,481,480,463,446,829,798,7484,6771,29988,29989,29989,29990]} 1. e4 {[%emt 0:00:05]} c5 {[%emt 0:00:07]} 2. Nf3 {[%emt 0:00:05]} Nc6 {[%emt 0:00:08]} 3. Bb5 {[%emt 0:00:06]} g6 {[%emt 0:00:15]} 4. Bxc6 {[%emt 0:00:26]} dxc6 {[%emt 0:00:06]} 5. d3 {[%emt 0:00:12]} Bg7 {[%emt 0:00:11]} 6. Nc3 {[%emt 0:00:34]} Nf6 {[%emt 0:02:21][%cal Bg8f6,Bf6d7,Bd7f8,Bf8e6,Be6d4][%mdl 32]} 7. h3 {[%emt 0:00:16]} Nd7 {[%emt 0:00:11]} 8. Be3 {[%emt 0:01:02]} e5 {[%emt 0:00:13]} 9. Qd2 {[%emt 0:00:52]} h6 {[%emt 0:00:29] B31: Sicilian: 2...Nc6 3 Bb5 g6.} 10. O-O {[%emt 0:07:33]} b6 {[%emt 0:00:34]} 11. Nh2 {[%emt 0:02:57]} Nf8 {[%emt 0:01:38] The position is equal.} 12. f4 {[%emt 0:02:22]} exf4 {[%emt 0:00:35]} 13. Bxf4 {[%emt 0:02:25]} Ne6 {[%emt 0:00:53]} 14. Be3 {[%emt 0:00:16]} c4 {[%emt 0:00:26] [#]} 15. Rad1 $146 {[%emt 0:07:27] next d4 is good for White.} ({Predecessor:} 15. Qf2 O-O 16. dxc4 h5 17. Nf3 Ba6 18. e5 Bxc4 19. Rfe1 Qe7 20. b3 Ba6 21. Ne4 {½-½ (33) Xu,Y (2545)-Anton Guijarro,D (2678) China 2019}) 15... cxd3 {[%emt 0:03:21]} 16. cxd3 {[%emt 0:01:13]} c5 {[%emt 0:13:02] Inhibits d4.} 17. Rf2 {[%emt 0:08:54]} Nd4 {[%emt 0:14:57]} 18. Rdf1 {[%emt 0:04:53]} (18. b4 $5) 18... Be6 {[%emt 0:05:28]} 19. Ng4 {[%emt 0:00:37][%cal Re3h6]} h5 {[%emt 0:06:21]} (19... f5 $11 20. Nxh6 Qh4 21. exf5 gxf5 22. Nxf5 Nxf5 23. Rxf5 Bxf5 24. Rxf5 O-O-O) 20. Bg5 $18 {[%emt 0:01:51]} hxg4 {[%emt 0:06:31]} (20... Qd7 $142 21. Nf6+ Bxf6 22. Bxf6 Rh7) 21. Bxd8 {[%emt 0:00:47]} Rxd8 {[%emt 0:00:16]} 22. Nd5 {[%emt 0:01:42] [#] aiming for Nc7+.} Rxd5 {[%emt 0:10:56]} (22... Rd7 $142 23. hxg4 Be5) 23. exd5 Bxd5 24. Qg5 {[%emt 0:13:23]} Rh5 {[%emt 0:06:14]} (24... Bxa2 $142 25. Qxg4 Be6) 25. Qxg4 {[%emt 0:01:01]} Ne6 {[%emt 0:04:37]} 26. Qa4+ {[%emt 0:00:21]} Kd8 {[%emt 0:00:24]} 27. Rxf7 {[%emt 0:01:45][%csl Gf7][%cal Ra4d7]} Bd4+ {[%emt 0:00:12] [#]} 28. R1f2 $1 {[%emt 0:01:16] Weighted Error Value: White=0.04 (flawless) /Black=0.90} 1-0